bitfinex/quotes_SOLUSD_20250410
["timestamp","ask_amount","ask_price","bid_price","bid_amount"]
[1744259421070,9.76007917,115.19,115.15,18.44397917]
[1744259421371,9.76007917,115.19,115.14,18.44477917]
[1744259421870,9.76007917,115.18,115.13,99.67557917]
[1744259422171,9.76007917,115.18,115.13,18.47557917]
[1744259422747,9.76007917,115.19,115.14,9.76007917]
[1744259422965,18.44207917,115.19,115.14,18.44457917]
[1744259423274,18.44207917,115.19,115.14,9.76007917]
[1744259423483,9.76007917,115.18,115.13,18.47557917]
[1744259423852,30.3852,115.19,115.14,9.76007917]
[1744259424184,9.76007917,115.15,115.13,0.03]
[1744259425160,18.44377917,115.16,115.13,0.03]
[1744259426955,9.76007917,115.15,115.13,0.03]
[1744259428385,9.76007917,115.14,115.13,0.03]
[1744259429371,18.44507917,115.14,115.13,0.03]
[1744259430175,8.685,115.14,115.13,0.03]
[1744259430377,9.76007917,115.14,115.13,0.03]
[1744259431375,18.44507917,115.14,115.13,0.03]
[1744259432371,30.3924,115.16,115.13,0.03]
[1744259432563,9.76007917,115.14,115.13,0.03]
[1744259434480,18.44507917,115.14,115.13,0.03]
[1744259436056,8.685,115.14,115.13,0.03]
[1744259437275,6.5762,115.17,115.13,0.03]
[1744259437482,8.6828,115.17,115.13,9.79007917]
[1744259438274,18.44247917,115.18,115.13,0.03]
[1744259438663,18.44247917,115.18,115.13,9.79007917]
[1744259438979,18.44247917,115.18,115.13,18.47567917]
[1744259439660,9.76007917,115.17,115.13,0.03]
[1744259439861,9.76007917,115.16,115.13,0.03]
[1744259440884,9.76007917,115.15,115.13,0.03]
[1744259441059,8.685,115.14,115.13,0.03]
[1744259442797,18.44507917,115.14,115.13,0.03]
[1744259443597,18.44477917,115.15,115.13,0.03]
[1744259445866,8.6847,115.15,115.13,0.03]
[1744259446786,18.44477917,115.15,115.13,0.03]
[1744259447568,23.44477917,115.15,115.13,0.03]
[1744259450692,13.6847,115.15,115.13,0.03]
[1744259451373,23.44477917,115.15,115.13,0.03]
[1744259451674,28.44477917,115.15,115.13,0.03]
[1744259454409,10.0,115.15,115.13,0.03]
[1744259454692,10.0,115.15,115.13,11.43237917]
[1744259454874,10.0,115.15,115.14,9.76007917]
[1744259455495,10.0,115.15,115.13,19.43237917]
[1744259455872,10.0,115.15,115.14,9.76007917]
[1744259456777,10.0,115.15,115.14,18.44507917]
[1744259457785,10.0,115.15,115.14,47.13913034]
[1744259457975,10.0,115.15,115.14,76.41936785]
[1744259458501,15.0,115.15,115.14,157.61936785]
[1744259460976,15.0,115.15,115.14,99.64507917]
[1744259461484,15.0,115.15,115.14,81.2]
[1744259462305,15.0,115.15,115.14,99.64507917]
[1744259462477,15.0,115.15,115.14,18.44507917]
[1744259463804,15.0,115.15,115.14,9.76007917]
[1744259463981,15.0,115.15,115.13,28.11787917]
[1744259464987,15.0,115.15,115.14,9.76007917]
[1744259466177,15.0,115.15,115.14,37.37905117]
[1744259466377,15.0,115.15,115.14,76.41936785]
[1744259467206,15.0,115.15,115.14,37.37905117]
[1744259468514,15.0,115.15,115.14,118.57905117]
[1744259469704,15.0,115.15,115.14,157.61936785]
[1744259470610,15.0,115.15,115.14,118.57905117]
[1744259472005,15.0,115.15,115.13,8.03]
[1744259472312,23.6843,115.15,115.13,8.03]
[1744259472886,33.44437917,115.15,115.13,8.03]
[1744259473403,23.6843,115.15,115.13,8.03]
[1744259474107,38.93722098,115.15,115.13,0.03]
[1744259474307,15.25292098,115.14,115.13,0.03]
[1744259474486,23.93792098,115.14,115.13,0.03]
[1744259476815,8.685,115.14,115.13,0.03]
[1744259477912,38.93752098,115.15,115.13,0.03]
[1744259479214,23.6846,115.15,115.13,0.03]
[1744259480511,15.0,115.15,115.13,0.03]
[1744259481588,23.6843,115.15,115.13,0.03]
[1744259481789,15.0,115.15,115.13,0.03]
[1744259482314,23.6844,115.15,115.13,0.03]
[1744259482909,15.0,115.15,115.13,0.03]
[1744259483336,15.0,115.15,115.13,15.28292098]
[1744259483493,15.0,115.15,115.14,50.87189298]
[1744259483996,15.0,115.15,115.14,66.12481396]
[1744259484196,15.0,115.15,115.14,50.87189298]
[1744259486007,15.0,115.15,115.14,66.12481396]
[1744259486214,30.25292098,115.15,115.13,0.03]
[1744259486415,15.0,115.15,115.13,0.03]
[1744259486626,15.0,115.15,115.14,15.25292098]
[1744259486791,15.0,115.15,115.14,34.18689298]
[1744259487847,15.0,115.15,115.14,42.87189298]
[1744259488307,15.0,115.15,115.14,23.93792098]
[1744259488493,15.0,115.15,115.13,23.96842098]
[1744259488820,15.0,115.15,115.14,34.18689298]
[1744259490121,15.0,115.15,115.14,42.87189298]
[1744259490501,15.0,115.15,115.14,23.93792098]
[1744259491024,15.0,115.15,115.14,8.685]
[1744259491630,15.0,115.15,115.14,23.93792098]
[1744259492146,23.6843,115.15,115.13,0.03]
[1744259492307,15.0,115.15,115.13,0.03]
[1744259493010,15.0,115.15,115.13,23.96862098]
[1744259493737,15.0,115.15,115.13,0.03]
[1744259496444,23.6843,115.15,115.13,0.03]
[1744259497037,26.0,115.11,115.09,0.03]
[1744259497211,9.76053007,115.12,115.09,0.03]
[1744259497537,17.54823007,115.14,115.09,9.79053007]
[1744259498204,8.6858,115.13,115.09,0.03]
[1744259498646,18.44633007,115.13,115.09,0.03]
[1744259499247,8.6858,115.13,115.09,0.03]
[1744259499457,23.94492839,115.13,115.09,0.03]
[1744259502878,31.73212839,115.14,115.09,15.43128996]
[1744259503850,31.73212839,115.14,115.09,24.11978996]
[1744259509037,23.94442839,115.14,115.1,27.47981043]
[1744259509862,15.25912839,115.13,115.09,89.9185]
[1744259510738,15.25912839,115.13,115.09,0.03]
[1744259510956,23.94502839,115.13,115.09,8.7187]
[1744259511156,23.94462839,115.14,115.09,23.97782839]
[1744259512757,15.25912839,115.14,115.1,27.621772]
[1744259513141,23.94422839,115.14,115.1,35.621772]
[1744259515245,26.0,115.1,115.09,81.23]
[1744259515445,26.0,115.1,115.09,0.03]
[1744259516646,41.25912839,115.1,115.09,0.03]
[1744259517366,49.94712839,115.1,115.09,0.03]
[1744259517944,65.20625678,115.1,115.09,0.03]
[1744259518140,65.20625678,115.1,115.09,0.0001]
[1744259518344,65.20625678,115.1,115.08,0.0001]
[1744259518574,15.25912839,115.09,115.08,0.0001]
[1744259519481,23.94792839,115.09,115.08,0.0001]
[1744259521274,18.46670289,115.09,115.08,0.0001]
[1744259521479,8.6888,115.09,115.08,0.0001]
[1744259521684,18.46670289,115.09,115.08,0.0001]
[1744259526674,18.46670289,115.09,115.04,0.03]
[1744259526675,40.18880289,115.09,115.04,0.03]
[1744259526872,9.77790289,115.05,115.04,0.03]
[1744259527900,8.6896,115.08,115.04,0.03]
[1744259528061,9.77790289,115.07,115.04,0.03]
[1744259528486,9.77790289,115.06,115.04,0.03]
[1744259532087,9.77790289,115.05,115.04,0.03]
[1744259532690,8.6903,115.07,115.04,0.03]
[1744259532907,9.77790289,115.05,115.04,0.03]
[1744259533092,9.77790289,115.06,115.04,0.03]
[1744259535998,18.46900289,115.06,115.04,0.03]
[1744259536199,9.77790289,115.05,115.04,0.03]
[1744259536981,48.88951445,115.05,115.04,0.03]
[1744259537894,57.58131445,115.05,115.04,0.03]
[1744259538286,98.24488645,115.05,115.01,0.03]
[1744259538492,9.77790289,115.02,115.01,0.03]
[1744259539579,18.47200289,115.02,115.01,0.03]
[1744259540388,37.40597489,115.02,115.01,0.03]
[1744259540587,45.49557489,115.02,115.01,0.03]
[1744259540896,8.6923,115.05,115.01,0.03]
[1744259541097,9.77790289,115.05,115.01,0.03]
[1744259541283,9.77790289,115.04,115.01,0.03]
[1744259541492,9.77790289,115.05,115.01,8.7248]
[1744259543809,9.77790289,115.04,115.01,0.03]
[1744259543983,9.77790289,115.03,115.01,0.03]
[1744259544681,9.77790289,115.04,115.01,0.03]
[1744259550205,9.77790289,115.05,115.01,0.03]
[1744259550408,9.77790289,115.04,115.01,0.03]
[1744259551386,18.47050289,115.04,115.01,0.03]
[1744259551694,9.77790289,115.03,115.01,0.03]
[1744259552009,9.77790289,115.02,115.01,0.03]
[1744259552824,14.9561,115.05,115.01,0.03]
[1744259552998,35.77790289,115.05,115.01,0.03]
[1744259553191,9.77790289,115.05,115.01,0.03]
[1744259555012,9.77790289,115.04,115.01,0.03]
[1744259556311,9.77790289,115.05,115.01,0.03]
[1744259556890,9.77790289,115.02,115.01,0.03]
[1744259557521,9.77790289,115.03,115.01,0.03]
[1744259558124,18.47130289,115.03,115.01,0.03]
[1744259558716,9.77790289,115.03,115.01,0.03]
[1744259559688,18.47010289,115.05,115.01,0.03]
[1744259560509,44.933972,115.04,115.01,0.03]
[1744259560709,9.77790289,115.02,115.01,0.03]
[1744259560896,9.77790289,115.03,115.01,0.03]
[1744259561090,26.0,115.04,115.01,0.03]
[1744259561419,18.47010289,115.05,115.01,0.03]
[1744259561803,8.6922,115.05,115.01,9.80790289]
[1744259561987,18.46920289,115.06,115.01,9.80790289]
[1744259563006,9.77790289,115.06,115.02,8.6941]
[1744259563507,8.6907,115.07,115.02,8.6941]
[1744259563508,8.6907,115.07,115.02,24.83380289]
[1744259563711,18.46860289,115.07,115.02,24.83380289]
[1744259564312,8.69,115.08,115.02,24.83380289]
[1744259564612,18.46790289,115.08,115.03,9.77790289]
[1744259564998,18.46790289,115.08,115.03,18.47090289]
[1744259565215,9.77790289,115.06,115.02,8.6937]
[1744259565810,9.77790289,115.06,115.01,107.70240289]
[1744259567116,8.6918,115.05,115.01,99.00790289]
[1744259567293,18.46970289,115.05,115.01,8.03]
[1744259567613,18.46970289,115.05,115.01,17.80790289]
[1744259568114,18.46970289,115.05,115.01,8.03]
[1744259570815,9.77790289,115.04,115.01,8.03]
[1744259571399,18.46970289,115.05,115.01,8.03]
[1744259573499,18.46970289,115.05,115.01,0.03]
[1744259574620,9.77790289,115.04,115.01,0.03]
[1744259575314,8.6926,115.04,115.01,0.03]
[1744259575516,9.77790289,115.06,115.01,9.80790289]
[1744259575715,9.77790289,115.07,115.02,9.77790289]
[1744259575915,18.46780289,115.08,115.02,9.77790289]
[1744259576096,9.77790289,115.07,115.02,9.77790289]
[1744259576602,9.77790289,115.07,115.03,8.0]
[1744259577012,18.46830289,115.07,115.03,16.6928]
[1744259577901,9.77790289,115.07,115.03,16.6928]
[1744259578405,18.46830289,115.07,115.03,16.6928]
[1744259579523,18.46830289,115.07,115.03,8.0]
[1744259579821,18.46830289,115.07,115.03,16.6932]
[1744259581026,9.77790289,115.07,115.03,16.6932]
[1744259581198,8.752,115.09,115.04,11.37360289]
[1744259581404,0.063,115.09,115.05,9.77790289]
[1744259582108,9.84090289,115.09,115.04,17.51670289]
[1744259582310,0.063,115.09,115.05,9.77790289]
[1744259582918,0.063,115.09,115.06,8.6911]
[1744259584128,9.77790289,115.08,115.05,8.6914]
[1744259584303,0.063,115.09,115.04,1.5957]
[1744259584304,9.77790289,115.07,115.04,1.5957]
[1744259584721,9.77790289,115.08,115.04,20.06590289]
[1744259584925,18.53000289,115.09,115.04,20.06590289]
[1744259585127,0.063,115.09,115.05,9.77790289]
[1744259586536,18.52980289,115.09,115.04,10.288]
[1744259586727,18.52980289,115.09,115.04,20.06590289]
[1744259587119,18.52980289,115.09,115.04,10.288]
[1744259587325,18.52980289,115.09,115.04,20.06590289]
[1744259589925,9.77790289,115.08,115.04,10.288]
[1744259590125,9.77790289,115.08,115.04,1.5957]
[1744259590322,9.77790289,115.06,115.01,89.9244]
[1744259590529,9.77790289,115.04,115.01,0.03]
[1744259591432,15.28624285,115.04,115.01,0.03]
[1744259592434,23.97954285,115.03,115.01,0.03]
[1744259594741,15.28624285,115.02,115.01,0.03]
[1744259596641,23.98034285,115.02,115.01,0.03]
[1744259598953,42.91431485,115.02,115.01,0.03]
[1744259599329,42.91431485,115.02,115.01,0.0001]
[1744259599738,58.2005577,115.02,115.01,0.0001]
[1744259599942,42.91431485,115.02,115.01,0.0001]
[1744259600139,8.6941,115.02,115.01,0.0001]
[1744259600327,23.98034285,115.02,115.01,0.0001]
[1744259600532,42.91431485,115.02,115.01,0.0001]
[1744259601637,58.2005577,115.02,115.01,0.0001]
[1744259602443,44.933972,115.0,114.99,0.03]
[1744259602641,75.5064577,115.0,114.99,0.03]
[1744259603150,44.933972,114.97,114.96,0.03]
[1744259603351,60.22021485,114.97,114.96,0.03]
[1744259603558,41.28624285,114.97,114.96,0.03]
[1744259604451,49.98414285,114.97,114.96,0.03]
[1744259604652,23.98334285,114.98,114.96,0.03]
[1744259605778,15.28624285,114.98,114.96,0.03]
[1744259606061,23.98294285,114.99,114.96,0.03]
[1744259606364,15.28624285,114.98,114.96,0.03]
[1744259606963,23.98344285,114.98,114.96,0.03]
[1744259607977,15.28624285,114.98,114.96,0.03]
[1744259608462,23.98294285,114.99,114.96,0.03]
[1744259608835,23.98234285,115.0,114.96,8.7286]
[1744259610662,23.98234285,115.0,114.96,0.03]
[1744259610966,15.28624285,114.99,114.96,0.03]
[1744259611264,9.79079103,114.99,114.96,0.03]
[1744259611462,18.48689103,115.0,114.96,0.03]
[1744259611968,9.79079103,115.0,114.96,0.03]
[1744259612171,8.6948,115.01,114.96,0.03]
[1744259612360,9.79079103,115.0,114.96,0.03]
[1744259612659,18.48679103,115.0,114.96,0.03]
[1744259613743,18.48719103,114.99,114.96,0.03]
[1744259615742,9.79079103,115.01,114.96,9.82079103]
[1744259616065,18.48489103,115.02,114.97,9.79079103]
[1744259616860,9.79079103,115.04,114.99,9.79079103]
[1744259617066,18.48379103,115.04,114.99,9.79079103]
[1744259617375,23.97948251,115.04,114.99,15.28648251]
[1744259617945,23.97948251,115.04,115.0,10.338]
[1744259619068,15.28648251,115.02,115.0,1.6424]
[1744259619273,15.28648251,115.01,114.97,9.6424]
[1744259619455,15.28648251,115.0,114.97,9.6424]
[1744259619660,15.28648251,114.99,114.97,1.6424]
[1744259619962,15.28648251,114.99,114.96,0.03]
[1744259620157,15.28648251,114.97,114.96,0.03]
[1744259621061,23.98438251,114.97,114.96,0.03]
[1744259621854,30.02488251,114.97,114.96,0.03]
[1744259622054,30.02488251,114.97,114.96,0.0001]
[1744259622253,45.31136502,114.97,114.96,0.0001]
[1744259622485,48.95885451,114.97,114.96,0.0001]
[1744259622791,72.24533702,114.97,114.96,0.0001]
[1744259623000,26.0,114.94,114.91,0.03]
[1744259623157,15.28648251,114.92,114.91,0.03]
[1744259625071,23.98818251,114.92,114.91,0.03]
[1744259630994,8.7017,114.92,114.91,0.03]
[1744259632382,23.98698251,114.94,114.91,0.03]
[1744259632592,15.28648251,114.93,114.91,0.03]
[1744259633186,30.4509,114.94,114.91,0.03]
[1744259633187,15.28648251,114.92,114.91,0.03]
[1744259634165,28.98818251,114.92,114.91,0.03]
[1744259634580,44.27466502,114.92,114.91,0.0001]
[1744259634765,44.55898816,114.92,114.91,0.0001]
[1744259636284,63.20863702,114.92,114.91,0.0001]
[1744259638199,0.28432314,114.91,114.89,0.03]
[1744259638486,30.57296502,114.9,114.89,0.03]
[1744259639987,39.27616502,114.9,114.89,0.03]
[1744259640288,23.98968251,114.9,114.89,0.03]
[1744259640806,23.98928251,114.91,114.89,0.03]
[1744259640985,15.28648251,114.9,114.89,0.03]
[1744259641884,23.98968251,114.9,114.89,0.03]
[1744259644200,23.98928251,114.91,114.89,0.03]
[1744259645905,23.98968251,114.9,114.89,0.03]
[1744259646678,39.27616502,114.9,114.89,0.03]
[1744259646904,39.56048816,114.9,114.89,0.0001]
[1744259647102,0.28432314,114.89,114.86,0.03]
[1744259647305,15.28648251,114.87,114.86,0.03]
[1744259647912,23.99188251,114.87,114.86,0.03]
[1744259649699,23.99148251,114.88,114.86,0.03]
[1744259649905,81.5,114.9,114.86,0.03]
[1744259650285,105.49028251,114.9,114.86,15.31648251]
[1744259650484,23.99028251,114.9,114.86,15.31648251]
[1744259651706,15.28648251,114.89,114.86,0.03]
[1744259651890,5.0,114.87,114.86,0.03]
[1744259654385,5.0,114.87,114.86,15.31648251]
[1744259655112,5.0,114.87,114.86,24.02268251]
[1744259657488,5.0,114.87,114.86,8.7362]
[1744259657689,5.0,114.87,114.86,24.02268251]
[1744259658414,5.0,114.87,114.86,0.03]
[1744259662902,10.0,114.87,114.86,0.03]
[1744259664913,10.0,114.87,114.86,15.31648251]
[1744259665817,10.0,114.87,114.86,24.02268251]
[1744259670997,10.0,114.87,114.86,0.03]
[1744259671819,10.0,114.87,114.86,27.670172]
[1744259671998,10.0,114.87,114.86,124.15665451]
[1744259672823,10.0,114.87,114.86,89.9362]
[1744259672997,10.0,114.87,114.86,105.22268251]
[1744259673405,10.0,114.87,114.86,89.9362]
[1744259673924,10.0,114.87,114.86,8.7362]
[1744259674119,10.0,114.87,114.86,0.03]
[1744259674306,18.7054,114.87,114.86,0.03]
[1744259674623,10.0,114.87,114.86,0.03]
[1744259674832,18.7054,114.87,114.86,0.03]
[1744259677424,33.99188251,114.87,114.86,0.03]
[1744259677733,18.7054,114.87,114.86,0.03]
[1744259677901,10.0,114.87,114.86,0.03]
[1744259678729,18.7054,114.87,114.86,0.03]
[1744259679239,33.99188251,114.87,114.86,0.03]
[1744259686435,74.68955451,114.87,114.84,0.03]
[1744259686629,15.28648251,114.85,114.84,0.03]
[1744259686833,30.57296502,114.85,114.84,0.03]
[1744259687032,39.27996502,114.85,114.84,0.03]
[1744259687351,23.99348251,114.85,114.84,0.03]
[1744259687850,8.7065,114.86,114.84,0.03]
[1744259688141,23.99298251,114.86,114.84,0.03]
[1744259689050,33.99228251,114.87,114.84,0.03]
[1744259692546,18.7058,114.87,114.84,0.03]
[1744259693555,10.0,114.87,114.84,0.03]
[1744259693764,10.0,114.87,114.85,9.81086898]
[1744259695753,10.0,114.87,114.85,18.51786898]
[1744259698090,10.0,114.87,114.86,9.81086898]
[1744259699427,10.0,114.87,114.86,37.45104098]
[1744259699645,10.0,114.87,114.86,120.31434098]
[1744259699943,10.063,114.92,114.87,18.933972]
[1744259700153,10.063,114.92,114.9,9.81086898]
[1744259701253,10.063,114.92,114.9,15.3116374]
[1744259701456,10.063,114.92,114.9,24.0144374]
[1744259702959,10.063,114.92,114.89,32.0150374]
[1744259704242,18.7647,114.92,114.89,8.0]
[1744259704653,10.063,114.92,114.89,32.0155374]
[1744259704952,10.063,114.92,114.91,15.3116374]
[1744259705661,10.063,114.92,114.91,24.0140374]
[1744259706653,10.063,114.92,114.91,8.7024]
[1744259706958,10.063,114.92,114.9,15.3116374]
[1744259707657,10.063,114.92,114.9,24.0144374]
[1744259708355,10.063,114.92,114.91,15.3116374]
[1744259708831,10.063,114.92,114.91,34.2456094]
[1744259710039,10.063,114.92,114.91,42.9480094]
[1744259715035,10.063,114.92,114.91,124.1480094]
[1744259720689,0.063,114.94,114.92,18.933972]
[1744259720983,0.063,114.94,114.93,23.3116374]
[1744259721284,0.0001,114.96,114.95,38.933972]
[1744259721581,0.063,114.97,114.96,18.933972]
[1744259721762,0.063,114.97,114.96,115.4456094]
[1744259722563,0.063,114.97,114.96,124.1442094]
[1744259725184,0.063,114.99,114.96,145.8908094]
[1744259725388,0.063,114.99,114.98,34.2456094]
[1744259726969,0.063,114.99,114.98,42.9427094]
[1744259731277,0.063,114.99,114.97,8.0]
[1744259732482,0.063,114.99,114.97,23.3116374]
[1744259733698,0.063,114.99,114.97,15.3116374]
[1744259734104,0.063,114.99,114.97,24.0093374]
[1744259737102,0.063,114.99,114.97,15.3116374]
[1744259737290,0.063,114.99,114.96,36.70273702]
[1744259737502,0.063,114.99,114.96,45.40133702]
[1744259737801,0.063,114.99,114.96,36.70273702]
[1744259738515,0.063,114.99,114.96,45.40133702]
[1744259739011,0.063,114.99,114.96,36.70273702]
[1744259739499,7.7268,114.99,114.96,7.98]
[1744259739817,9.78876502,114.97,114.91,8.7024]
[1744259740109,7.7268,114.99,114.91,8.7024]
[1744259740110,9.78876502,114.95,114.92,18.64964886]
[1744259740285,9.78876502,114.96,114.92,18.64964886]
[1744259740692,9.78876502,114.96,114.92,28.43841388]
[1744259741001,9.78876502,114.97,114.93,9.78876502]
[1744259741298,7.7268,114.99,114.93,15.30394069]
[1744259741491,24.00184069,114.98,114.94,15.30394069]
[1744259742003,7.7268,114.99,114.96,15.30394069]
[1744259743005,0.063,114.99,114.97,15.30394069]
[1744259746914,0.063,114.99,114.96,0.28432314]
[1744259747099,0.063,114.99,114.96,15.58826383]
[1744259748811,0.063,114.99,114.96,24.28676383]
[1744259749193,0.063,114.99,114.96,15.58826383]
[1744259750014,0.063,114.99,114.96,24.28686383]
[1744259750395,0.063,114.99,114.95,31.98304069]
[1744259750705,0.063,114.99,114.95,41.93358955]
[1744259750920,15.36694069,114.99,114.95,7.98]
[1744259751301,15.30394069,114.98,114.95,7.98]
[1744259751697,21.94664069,114.98,114.94,81.2]
[1744259751897,1.6363,114.97,114.93,34.09575112]
[1744259752813,10.3348,114.97,114.93,34.09575112]
[1744259753922,10.3348,114.97,114.93,42.79665112]
[1744259756118,8.6985,114.97,114.93,42.79665112]
[1744259756325,8.6985,114.97,114.94,15.30394069]
[1744259758027,8.6985,114.97,114.93,42.79665112]
[1744259758325,16.94114069,114.96,114.92,8.15216157]
[1744259759206,16.94114069,114.96,114.92,8.01]
[1744259759526,15.30394069,114.95,114.92,8.01]
[1744259760030,15.30394069,114.95,114.92,0.03]
[1744259760327,8.7001,114.94,114.92,0.03]
[1744259761034,15.30394069,114.93,114.92,0.03]
[1744259761411,30.10114069,114.94,114.92,0.03]
[1744259761916,6.0971,114.94,114.92,0.03]
[1744259762122,10.3362,114.96,114.92,15.33394069]
[1744259762422,10.3362,114.96,114.92,0.03]
[1744259762423,25.64014069,114.96,114.92,0.03]
[1744259763328,20.13338805,114.96,114.92,0.03]
[1744259766754,6.0971,114.88,114.8,13.40591198]
[1744259766957,9.79718805,114.86,114.8,13.40591198]
[1744259767127,9.79718805,114.83,114.8,13.40591198]
[1744259767830,9.79718805,114.81,114.77,9.3]
[1744259768656,8.7108,114.8,114.77,9.3]
[1744259768955,18.50798805,114.8,114.75,0.03]
[1744259769170,9.79718805,114.78,114.76,9.3]
[1744259769448,15.35412959,114.77,114.75,0.03]
[1744259769655,15.35412959,114.76,114.75,0.03]
[1744259770833,24.06792959,114.76,114.75,0.03]
[1744259771436,39.42205918,114.76,114.75,0.03]
[1744259772050,24.06792959,114.76,114.75,0.03]
[1744259772234,39.42205918,114.76,114.75,0.03]
[1744259773562,39.42205918,114.76,114.64,26.0046]
[1744259773563,81.5,114.75,114.63,101.2]
[1744259773763,15.35412959,114.72,114.66,15.35412959]
[1744259774260,15.35412959,114.71,114.65,15.35412959]
[1744259774463,15.35412959,114.7,114.65,15.35412959]
[1744259774656,15.35412959,114.68,114.64,9.3]
[1744259777156,10.3181,114.72,114.64,9.3]
[1744259777377,15.35412959,114.7,114.65,15.35412959]
[1744259777775,6.0796,114.74,114.69,15.35412959]
[1744259777982,30.14902959,114.74,114.7,24.67412959]
[1744259778371,21.43372959,114.74,114.7,9.32]
[1744259778856,90.2126,114.78,114.72,15.35412959]
[1744259779070,15.35412959,114.77,114.72,15.35412959]
[1744259779391,24.57175774,114.77,114.72,24.57175774]
[1744259781192,24.57175774,114.76,114.72,24.57175774]
[1744259781374,24.57175774,114.76,114.71,33.28875774]
[1744259781572,24.57175774,114.75,114.71,24.57175774]
[1744259781775,24.57175774,114.76,114.71,33.28935774]
[1744259782874,24.57175774,114.76,114.72,24.57175774]
[1744259783076,24.57175774,114.76,114.71,33.28935774]
[1744259783580,24.57175774,114.75,114.71,33.28935774]
[1744259784292,24.57175774,114.76,114.71,33.28935774]
[1744259784988,24.57175774,114.77,114.72,24.57175774]
[1744259785197,24.57175774,114.77,114.71,8.7176]
[1744259785198,24.57175774,114.78,114.73,24.57175774]
[1744259785696,24.57175774,114.77,114.72,24.57175774]
[1744259787078,24.57175774,114.77,114.72,33.28795774]
[1744259787399,24.57175774,114.76,114.71,24.57175774]
[1744259787598,24.57175774,114.76,114.71,33.28935774]
[1744259787900,8.7131,114.77,114.71,33.28935774]
[1744259788097,8.7131,114.77,114.71,8.7176]
[1744259788305,8.7131,114.77,114.71,18.0376]
[1744259788306,24.57175774,114.75,114.71,18.0376]
[1744259788592,24.57175774,114.78,114.73,24.57175774]
[1744259788794,24.57175774,114.8,114.74,24.57175774]
[1744259788981,24.57175774,114.79,114.75,8.7145]
[1744259789374,24.57175774,114.79,114.75,33.28625774]
[1744259789576,8.7108,114.8,114.75,8.7145]
[1744259789903,24.57175774,114.79,114.75,8.7145]
[1744259790085,24.57175774,114.78,114.75,8.7145]
[1744259790276,24.57175774,114.79,114.75,8.7145]
[1744259790878,24.57175774,114.79,114.75,33.28625774]
[1744259791182,24.57175774,114.79,114.76,9.32]
[1744259791500,24.57175774,114.78,114.76,9.32]
[1744259791801,24.57175774,114.8,114.76,9.32]
[1744259792101,24.57175774,114.77,114.76,9.32]
[1744259794909,24.57175774,114.79,114.76,18.0338]
[1744259795778,24.57175774,114.8,114.77,18.933972]
[1744259796005,24.63475774,114.82,114.77,43.50572974]
[1744259796198,24.63475774,114.82,114.78,24.57175774]
[1744259796498,0.063,114.82,114.79,43.50572974]
[1744259796802,0.063,114.82,114.8,8.7108]
[1744259797097,0.063,114.82,114.81,9.3]
[1744259798798,0.063,114.82,114.81,18.01]
[1744259804008,0.063,114.82,114.81,36.943972]
[1744259804187,0.063,114.82,114.81,52.28221476]
[1744259808699,0.063,114.82,114.81,133.48221476]
[1744259811282,0.063,114.82,114.81,118.143972]
[1744259812005,0.063,114.82,114.81,99.21]
[1744259812211,15.40124276,114.82,114.81,90.5]
[1744259812407,0.063,114.82,114.81,99.21]
[1744259814019,0.063,114.82,114.81,118.143972]
[1744259815111,0.063,114.82,114.81,133.48221476]
[1744259816481,0.063,114.82,114.81,118.143972]
[1744259816708,0.063,114.82,114.81,99.21]
[1744259818593,0.063,114.82,114.81,118.143972]
[1744259823517,0.063,114.82,114.81,133.48221476]
[1744259824809,0.063,114.82,114.81,118.143972]